bitfinex/quotes_ETHUSD_20220220
["timestamp","ask_amount","ask_price","bid_price","bid_amount"]
[1645328998315,0.531,2717.6,2717.4,0.00303033]
[1645328998511,0.92142,2717.4,2716.4,7.32]
[1645328998713,0.9214484,2717.2,2716.4,7.32]
[1645328998910,1.84284,2717.1,2716.5,1.56443541]
[1645328999109,1.8428332,2717.0,2716.5,1.56443541]
[1645328999309,2.8428332,2717.0,2716.5,1.56443541]
[1645329000355,2.8428332,2717.0,2716.6,1.56455471]
[1645329000556,2.8428332,2717.0,2716.4,7.32]
[1645329000954,3.7642532,2717.0,2716.4,7.32]
[1645329001353,3.7642532,2717.0,2716.5,1.56456344]
[1645329001558,3.7642532,2717.0,2716.6,0.0030237]
[1645329002257,4.2952532,2717.0,2716.6,0.0030237]
[1645329002458,4.2952532,2717.0,2716.5,1.56456344]
[1645329002858,4.2952532,2717.0,2716.7,0.00302359]
[1645329003158,4.8952532,2717.0,2716.7,0.00302359]
[1645329003361,4.0,2716.9,2716.4,7.32]
[1645329003563,0.531,2716.8,2716.4,7.32]
[1645329003808,0.9216,2716.6,2716.4,7.32]
[1645329004003,2.7647424,2716.6,2716.4,7.32]
[1645329004504,1.0,2716.5,2716.4,7.32]
[1645329005909,1.0,2716.5,2715.8,6.34393749]
[1645329005910,0.92157,2716.2,2715.8,6.34393749]
[1645329006209,0.92157,2716.2,2715.8,0.00343749]
[1645329006405,0.92157,2716.2,2715.8,1.56473472]
[1645329007307,0.92157,2716.2,2715.8,1.56016155]
[1645329007564,0.92157,2716.2,2715.9,0.00301692]
[1645329008461,0.92157,2716.2,2715.8,0.00343749]
[1645329008657,0.92157,2716.2,2715.9,0.00301687]
[1645329009658,0.92157,2716.2,2715.7,1.1759]
[1645329010057,0.92157,2716.2,2715.9,0.00301687]
[1645329010957,0.92157,2716.2,2715.7,2.14880254]
[1645329011217,0.92157,2716.2,2715.9,0.00301687]
[1645329011611,0.7149,2716.8,2715.9,0.00301687]
[1645329011612,0.1839,2717.1,2716.2,1.66894647]
[1645329011806,0.1839,2717.3,2716.3,3.5]
[1645329012005,0.1839,2717.3,2716.4,1.1807]
[1645329012211,0.92108,2717.4,2716.4,1.1807]
[1645329012505,0.92108,2717.4,2716.6,0.90583875]
[1645329013711,0.92108,2717.4,2716.7,3.5]
[1645329014107,0.92101,2717.7,2716.7,3.5]
[1645329014709,0.147308,2717.8,2716.8,0.92101]
[1645329014963,0.147308,2717.8,2717.6,1.19232844]
[1645329015161,0.1839,2718.5,2717.7,3.5]
[1645329015359,0.1839,2718.8,2717.7,3.5]
[1645329015962,1.8417,2718.4,2717.7,3.5]
[1645329016565,1.8415685,2718.5,2717.7,3.5]
[1645329016566,0.92077,2718.5,2717.7,3.5]
[1645329016765,0.1839,2719.2,2717.7,3.5]
[1645329016964,0.92051,2719.1,2717.8,1.1274]
[1645329017163,0.1839,2719.0,2717.9,3.5]
[1645329017763,1.10441,2719.1,2718.4,0.97682644]
[1645329018566,0.92062,2718.8,2718.4,0.97682644]
[1645329019015,0.92062,2718.8,2718.1,3.5]
[1645329019509,0.00335741,2718.6,2718.1,3.5]
[1645329019712,0.00335741,2718.6,2718.2,1.45151]
[1645329019914,0.00335741,2718.6,2718.3,3.5]
[1645329020117,5.741e-05,2718.6,2718.3,15.201]
[1645329020313,5.741e-05,2718.6,2718.4,17.3871]
[1645329020513,5.741e-05,2718.6,2718.5,11.701]
[1645329020714,3.69019598,2720.1,2718.8,0.9202]
[1645329020911,3.69019598,2720.1,2718.8,2.2021]
[1645329021114,1.11044238,2720.1,2718.8,3.4192]
[1645329021312,0.92654238,2720.1,2718.8,3.4192]
[1645329021911,1.84678238,2720.1,2719.3,0.87178319]
[1645329022460,2.84678238,2720.1,2719.3,0.87178319]
[1645329022857,1.0,2720.0,2719.3,0.87178319]
[1645329023057,0.92028,2719.9,2719.1,0.92023]
[1645329023259,0.92297911,2719.8,2719.0,6.228]
[1645329023460,0.00629598,2719.7,2719.0,6.228]
[1645329024263,0.00629598,2719.7,2719.1,1.01760775]
[1645329024462,0.0035433,2719.5,2719.1,1.01760775]
[1645329025264,0.00629598,2719.7,2719.1,1.01760775]
[1645329025769,0.0033568,2719.4,2719.0,6.228]
[1645329025963,0.0033568,2719.4,2718.8,4.3725]
[1645329025964,0.9238068,2719.4,2718.8,4.3725]
[1645329026215,0.9238068,2719.4,2718.8,1.7481]
[1645329026403,0.93010278,2719.4,2718.8,1.7481]
[1645329026607,0.92674598,2719.4,2718.8,1.2171]
[1645329026803,0.00335685,2719.2,2718.8,1.2171]
[1645329027006,0.92052,2719.1,2718.8,1.2171]
[1645329027406,0.92052,2719.1,2718.5,1.54077154]
[1645329027808,0.00335685,2719.2,2718.5,1.54077154]
[1645329027809,0.9205098,2719.3,2718.5,2.46121154]
[1645329028007,0.00335693,2718.9,2718.5,2.46121154]
[1645329029006,0.92044,2719.4,2718.5,2.46121154]
[1645329029212,0.00335695,2718.8,2718.5,2.46121154]
[1645329029607,0.00335695,2718.8,2718.5,1.93021154]
[1645329030053,0.00629598,2719.3,2718.5,1.93021154]
[1645329030452,0.00338426,2718.8,2718.5,1.93021154]
[1645329031053,0.00338426,2718.8,2718.5,1.00977154]
[1645329031258,0.93404502,2719.2,2718.5,1.00977154]
[1645329031453,0.00629598,2719.1,2718.5,1.00977154]
[1645329031654,0.00338426,2718.8,2718.5,1.00977154]
[1645329032654,0.00629598,2719.1,2718.5,1.00977154]
[1645329032855,0.00338426,2718.8,2718.5,1.00977154]
[1645329033805,0.00629598,2719.1,2718.2,11.74347]
[1645329034004,0.00338027,2718.8,2718.2,11.74347]
[1645329034408,0.00338027,2718.8,2718.2,9.3716]
[1645329034609,0.00338027,2718.8,2718.2,6.4771]
[1645329034805,0.18728027,2718.8,2718.2,6.4771]
[1645329035103,0.1839,2718.8,2718.2,6.4771]
[1645329035305,0.53438019,2718.7,2718.2,6.4771]
[1645329035505,0.1839,2718.6,2718.2,6.4771]
[1645329035708,0.00338019,2718.7,2718.1,2.3519]
[1645329036106,0.00629598,2719.2,2718.1,2.3519]
[1645329036305,1.00629598,2719.2,2718.1,2.3519]
[1645329036506,0.00338009,2718.7,2718.1,2.3519]
[1645329036707,0.00338009,2718.7,2718.2,0.92052]
[1645329037309,0.00629598,2719.2,2718.2,0.92052]
[1645329037567,0.00629598,2719.5,2718.3,0.531]
[1645329037868,0.00338072,2718.7,2718.3,14.5438]
[1645329038065,0.00338072,2718.7,2718.4,17.6257]
[1645329038267,0.00338072,2718.7,2718.5,3.75664328]
[1645329038666,0.1839,2719.8,2718.5,3.75664328]
[1645329038867,0.00338087,2718.7,2718.5,3.75664328]
[1645329039469,0.92035,2719.7,2718.5,3.75664328]
[1645329039965,0.92035,2719.7,2719.2,1.1329493]
[1645329041219,0.92035,2719.7,2718.7,1.84053]
[1645329041607,1.067553,2719.7,2718.6,3.201]
[1645329041808,2.067553,2719.7,2718.6,3.201]
[1645329042011,0.92035,2719.7,2718.6,3.201]
[1645329042222,1.92035,2719.7,2718.6,3.201]
[1645329042408,0.00337745,2719.3,2718.9,0.00251525]
[1645329042607,0.9205,2719.2,2718.9,0.00251525]
[1645329043409,0.9205,2719.2,2718.7,1.05092401]
[1645329043910,0.92387741,2719.2,2718.9,0.00251525]
[1645329044713,0.9205,2719.2,2718.7,1.05092401]
[1645329044957,0.9205,2719.2,2718.9,0.00250875]
[1645329044958,0.92387546,2719.2,2718.9,0.00250875]
[1645329045760,1.92042,2719.4,2718.7,1.05092401]
[1645329046162,0.00337546,2719.2,2718.9,0.00250875]
[1645329046962,0.92042,2719.4,2718.7,1.05092401]
[1645329047165,0.1837,2719.5,2718.7,1.05092401]
[1645329047363,0.00337546,2719.2,2718.9,0.00250875]
[1645329048261,3.62464,2719.6,2718.7,1.05092401]
[1645329048462,0.00337575,2719.2,2718.9,0.00250971]
[1645329048915,0.92389575,2719.2,2718.9,0.00250971]
[1645329049313,0.92052,2719.2,2718.7,1.05092401]
[1645329049719,0.92052,2719.2,2718.9,0.00250971]
[1645329049720,0.92389575,2719.2,2718.9,0.00250971]
[1645329050115,0.00337575,2719.2,2718.9,0.00250971]
[1645329050517,1.531,2719.8,2718.7,1.05092401]
[1645329050518,0.1837,2719.7,2718.7,1.05092401]
[1645329050717,1.84067,2720.0,2718.8,1.1808]
[1645329050718,1.0,2719.9,2718.8,1.1808]
[1645329050917,0.00337575,2719.2,2718.9,0.00250971]
[1645329051617,0.00337575,2719.2,2718.9,0.92280971]
[1645329051818,1.0,2719.9,2718.9,0.9203]
[1645329052019,1.0,2719.9,2719.3,1.0814611]
[1645329052020,0.92031,2719.8,2719.3,1.0814611]
[1645329053462,0.00337563,2719.7,2719.3,1.0814611]
[1645329054265,0.92031,2719.8,2719.3,1.0814611]
[1645329054466,0.00337564,2719.6,2719.3,1.0814611]
[1645329055466,2.8406455,2719.8,2719.3,1.0814611]
[1645329055666,0.00337566,2719.6,2719.3,1.0814611]
[1645329056509,0.00337566,2719.6,2718.9,0.92281957]
[1645329056710,1.8406455,2719.8,2718.9,0.92031]
[1645329056913,0.00337566,2719.6,2718.9,0.92281957]
[1645329057110,0.00337566,2719.6,2719.0,1.5631882]
[1645329057514,0.92039,2719.5,2718.9,0.89446329]
[1645329057711,0.92039,2719.5,2719.0,1.56322164]
[1645329058113,0.00337573,2719.3,2718.9,0.00250957]
[1645329058514,0.92049,2719.2,2718.9,0.00250957]
[1645329059012,0.92049,2719.2,2718.8,1.1808]
[1645329059411,1.92386571,2719.2,2718.9,0.00250957]
[1645329060082,1.92386571,2719.2,2718.9,0.00167798]
[1645329060279,1.92049,2719.2,2718.6,1.56340044]
[1645329060480,1.0,2719.2,2718.6,1.56340044]
[1645329060678,1.0,2719.2,2718.9,0.00250957]
[1645329060679,0.00337571,2719.2,2718.9,0.00250957]
[1645329061081,0.15060471,2719.2,2718.9,0.00250957]
[1645329061480,0.147229,2719.2,2718.6,1.56340044]
[1645329061680,0.14985257,2719.2,2718.6,1.56340044]
[1645329061879,0.00262357,2719.2,2718.6,1.56340044]
[1645329062480,0.00262357,2719.2,2719.1,1.1025759]
[1645329062685,0.92042,2719.5,2719.1,2.66597634]
[1645329062883,0.00262343,2719.2,2719.1,1.1025759]
[1645329063089,0.00262343,2719.2,2719.1,2.66586597]
[1645329063710,0.00262343,2719.2,2719.1,1.1025759]
[1645329063911,0.9203369,2719.8,2719.1,1.1025759]
[1645329064111,0.00354019,2719.3,2719.1,1.1025759]
[1645329064713,0.00354019,2719.3,2718.9,1.19205576]
[1645329064911,0.00354019,2719.3,2719.0,1.56329207]
[1645329065111,0.92045,2719.4,2719.0,1.56329207]
[1645329065314,0.0035402,2719.2,2719.0,1.56329207]
[1645329066212,0.92045,2719.4,2718.9,2.23116066]
[1645329066412,1.0,2719.6,2718.9,2.23421642]
[1645329066612,0.0035402,2719.2,2719.0,1.56329419]
[1645329066812,0.0035402,2719.2,2718.9,2.23421642]
[1645329067567,0.92043,2719.4,2718.9,2.23116066]
[1645329067766,0.00354018,2719.2,2718.9,2.23421642]
[1645329068468,0.00354018,2719.2,2718.9,1.19205576]
[1645329068671,0.92043,2719.4,2718.9,1.189]
[1645329068869,0.00354018,2719.2,2718.9,1.19205576]
[1645329069068,0.92405018,2719.2,2718.9,1.19205576]
[1645329069270,0.92405018,2719.2,2718.9,0.00305576]
[1645329069871,0.92051,2719.2,2718.9,2.47098408]
[1645329070173,0.00354018,2719.2,2718.9,0.91070334]
[1645329070971,0.92042,2719.4,2718.9,0.91070334]
[1645329071210,0.92042,2719.4,2718.9,0.90764758]
[1645329071409,0.00354018,2719.2,2718.9,0.91070334]
[1645329072211,0.92042,2719.4,2718.9,0.90764758]
[1645329072413,1.1837,2719.7,2718.9,0.90764758]
[1645329072611,0.00354018,2719.2,2719.0,1.56327331]
[1645329073411,1.0,2719.7,2719.0,1.56327331]
[1645329073611,1.0,2719.7,2718.9,0.90764758]
[1645329073812,0.0035402,2719.2,2718.9,0.91070334]
[1645329074413,0.0035402,2719.2,2719.0,1.5632657]
[1645329074613,0.0035402,2719.2,2719.0,2.4835157]
[1645329074820,1.0,2720.0,2719.1,1.56312501]
[1645329075067,0.00354018,2719.2,2719.1,1.56312501]
[1645329075664,0.00354018,2719.2,2719.1,2.70932501]
[1645329075870,0.92012,2720.3,2719.4,0.92012]
[1645329076066,0.1837,2720.2,2719.8,0.96180916]
[1645329076266,0.0141576,2719.9,2719.8,0.96180916]
[1645329077069,1.1837,2720.4,2719.8,0.96180916]
[1645329077268,0.00353995,2720.0,2719.8,0.96180916]
[1645329077871,0.00353995,2720.0,2719.9,1.2418]
[1645329078475,1.1837,2720.8,2719.9,1.2418]
[1645329078721,0.00353992,2720.1,2719.9,1.2418]
[1645329079515,0.9200637,2720.7,2719.9,1.2418]
[1645329079714,0.00309112,2720.1,2719.9,1.2418]
[1645329080719,0.147176,2720.2,2719.9,1.2418]
[1645329081917,1.0,2720.8,2720.2,1.00951217]
[1645329082216,2.37994184,2720.9,2720.2,1.00951217]
[1645329082460,2.27994184,2720.9,2720.2,1.00951217]
[1645329082863,0.91998,2720.7,2720.2,1.00951217]
[1645329084265,1.067138,2720.7,2720.2,1.00951217]
[1645329084464,0.00348881,2720.6,2720.2,1.00951217]
[1645329084968,0.00348881,2720.6,2720.2,1.92941217]
[1645329085568,0.43989184,2720.9,2720.2,1.92941217]
[1645329085769,0.00348883,2720.5,2720.2,1.92941217]
[1645329086324,0.00348883,2720.5,2720.2,1.00951217]
[1645329086713,0.43989184,2720.9,2720.2,1.00951217]
[1645329089313,0.00335237,2720.7,2720.2,1.92938217]
[1645329089818,0.00335237,2720.7,2720.2,1.00951217]
[1645329090264,0.43989184,2720.9,2720.2,1.00951217]
[1645329090666,0.00335239,2720.6,2720.2,1.00951217]
[1645329091468,0.91998,2720.7,2720.2,1.00951217]
[1645329091666,0.43989184,2720.9,2720.2,1.00951217]
[1645329091667,0.00337178,2720.5,2720.2,1.00951217]
[1645329092766,0.43989184,2720.9,2720.2,1.00951217]
[1645329092969,0.0033718,2720.5,2720.2,1.00951217]
[1645329093822,0.43989184,2720.9,2720.2,1.92937217]
[1645329094028,1.35982184,2720.9,2720.2,1.00951217]
[1645329094227,0.0033718,2720.5,2720.2,1.00951217]
[1645329095124,2.373307,2720.9,2720.2,1.00951217]
[1645329095125,2.35982184,2720.9,2720.2,1.00951217]
[1645329095326,0.00336897,2720.5,2720.2,1.00951217]
[1645329096228,2.35982184,2720.9,2720.2,1.00951217]
[1645329096632,0.00336897,2720.5,2720.2,1.00951217]
[1645329097035,0.00336897,2720.5,2719.9,1.2418]
[1645329097464,0.92002,2720.6,2719.9,1.2418]
[1645329097966,0.00336901,2720.3,2719.9,1.2418]
[1645329098766,0.92002,2720.6,2719.9,1.2418]
[1645329098968,0.00336945,2720.2,2719.9,1.2418]
[1645329099771,0.15054545,2720.2,2719.9,1.2418]
[1645329099971,0.0062645,2720.5,2719.9,1.2418]
[1645329100171,0.00336946,2720.2,2719.9,1.2418]
[1645329100372,0.00336946,2720.2,2719.9,2.16173]
[1645329101213,0.55860728,2721.2,2720.0,3.5]
[1645329101416,0.00336946,2720.2,2720.1,12.79246446]
[1645329101615,0.01347584,2720.6,2720.2,0.92650892]
[1645329101820,0.01347584,2720.6,2720.3,3.5]
[1645329102414,0.0062645,2721.2,2720.3,3.5]
[1645329102615,0.0062645,2721.2,2720.9,0.92911486]
[1645329102817,0.91977,2721.3,2720.9,0.92911486]
[1645329103015,0.91977,2721.3,2720.3,14.3171]
[1645329103213,0.0062645,2721.2,2720.3,14.3171]
[1645329103415,0.1533935,2721.2,2720.3,14.3171]
[1645329103714,0.0062645,2721.2,2720.5,0.91975]
[1645329104113,0.0062645,2721.2,2720.9,0.90569251]
[1645329104315,0.91977,2721.3,2720.9,0.90569251]
[1645329105067,0.00261762,2721.2,2720.9,0.90569251]
[1645329105869,0.1899645,2721.4,2720.9,0.90569251]
[1645329106067,0.0062645,2721.4,2720.9,0.90569251]
[1645329106269,1.64311231,2721.5,2720.9,0.90569251]
[1645329107268,1.79023731,2721.5,2720.9,0.90569251]
[1645329107667,1.64311231,2721.5,2720.9,0.90569251]
[1645329107867,2.05941231,2721.5,2720.9,0.90569251]
[1645329108067,0.9198071,2721.4,2720.6,4.6892]
[1645329108469,1.9198071,2721.4,2720.6,4.6892]
[1645329108715,0.9198,2721.3,2720.6,4.6892]
[1645329109215,0.9198,2721.3,2720.9,0.90985214]
[1645329109417,1.9198,2721.3,2720.9,0.90985214]
[1645329109818,0.9198,2721.3,2720.9,0.90985214]
[1645329110018,1.9198,2721.3,2720.9,0.90985214]
[1645329111017,1.92333041,2721.3,2720.9,0.90985214]
[1645329111219,0.92333041,2721.3,2720.9,0.90985214]
[1645329111516,1.92333041,2721.3,2720.9,0.90985214]
[1645329111918,0.9198,2721.3,2720.9,0.90985214]
[1645329112123,0.92333041,2721.3,2720.9,0.90985214]
[1645329113166,0.9198,2721.3,2720.9,0.90985214]
[1645329113365,0.92333041,2721.3,2720.9,0.90985214]
[1645329114370,0.9198,2721.3,2720.6,4.6892]
[1645329114568,0.9198,2721.3,2720.6,1.1892]
[1645329114569,0.92333041,2721.3,2720.6,1.1892]
[1645329114969,1.07045641,2721.3,2720.6,1.1892]
[1645329115168,2.07045641,2721.3,2720.6,1.1892]
[1645329115368,1.92333041,2721.3,2720.6,1.1892]
[1645329115571,1.92333041,2721.3,2720.3,7.8199]
[1645329115572,3.46404326,2721.2,2720.3,7.8199]
[1645329115775,0.92005,2720.9,2720.2,1.19623892]
[1645329115974,1.93475,2720.9,2720.2,0.00673892]
[1645329116224,2.23475,2720.9,2720.2,0.00673892]
[1645329116425,3.23475,2720.9,2720.2,0.00673892]
[1645329116627,0.1837,2720.8,2720.2,0.00673892]
[1645329116825,1.1837,2720.8,2720.2,0.00673892]
[1645329117026,1.84024,2720.7,2720.2,0.00673892]
[1645329117228,4.2804918,2720.7,2720.2,0.00673892]
[1645329117431,3.44024,2720.7,2720.2,0.00673892]
[1645329117825,2.84024,2720.7,2720.2,0.00673892]
[1645329118429,0.9201,2720.6,2720.2,0.00673892]
[1645329120269,1.0,2720.8,2720.2,0.00673892]
[1645329120667,1.8398623,2721.0,2720.2,0.00673892]
[1645329121267,1.8398623,2721.0,2720.3,1.0401581]
[1645329122870,1.9870153,2721.0,2720.3,1.0401581]
[1645329123069,1.8398623,2721.0,2720.4,3.5]
[1645329123274,3.86727469,2721.3,2720.8,1.08724537]
[1645329123472,0.00353189,2721.3,2720.8,1.08724537]
[1645329123916,0.91979,2721.4,2720.8,1.08724537]
[1645329124418,0.00353227,2721.3,2720.8,1.08724537]
[1645329125222,0.91979,2721.4,2720.8,1.08724537]
[1645329125419,0.00353227,2721.3,2720.8,1.08724537]
[1645329126120,0.92336077,2721.3,2720.8,1.08724537]
[1645329126320,0.9198285,2721.3,2720.6,3.5]
[1645329126519,0.92336077,2721.3,2720.6,3.5]
[1645329126719,1.07049877,2721.3,2720.6,3.5]
[1645329127020,0.92336077,2721.3,2720.5,4.4571]
[1645329127469,0.9198285,2721.3,2720.5,4.4571]
[1645329127675,0.92336063,2721.3,2720.6,3.5]
[1645329127875,0.91984,2721.1,2720.7,0.89354066]
[1645329128574,1.92336063,2721.3,2720.7,0.89354066]
[1645329128575,0.00353213,2721.3,2720.8,3.5]
[1645329128772,1.1837,2721.8,2720.8,1.212]
[1645329128971,0.00353213,2721.3,2720.8,1.212]
[1645329129372,3.7,2721.1,2720.8,1.212]
[1645329129570,3.7,2721.1,2720.7,1.65734066]
[1645329129870,3.7,2721.1,2720.7,0.89236498]
[1645329132319,3.7,2721.1,2720.9,0.5]
[1645329132622,4.61985,2721.1,2720.9,0.49362284]
[1645329133222,4.5,2721.0,2720.9,2.284e-05]
[1645329133522,5.031,2721.0,2720.4,1.2178]
[1645329133721,2.14007,2720.9,2719.9,3.2058]
[1645329133924,4.031,2720.8,2719.9,3.2058]
[1645329134121,4.031,2720.8,2720.0,1.1528]
[1645329134319,1.0,2720.7,2720.0,1.1528]
[1645329134721,1.92003,2720.7,2720.0,1.1528]
[1645329135369,0.92003,2720.7,2720.0,1.1528]
[1645329135573,1.92003,2720.7,2720.0,1.1528]
[1645329136170,0.92003,2720.7,2720.0,1.1528]
[1645329138274,1.067195,2720.7,2720.0,1.1528]
[1645329138728,0.92003,2720.7,2720.0,1.1528]
[1645329139926,0.91861249,2720.7,2720.0,1.1528]
[1645329142329,1.06577749,2720.7,2720.0,1.1528]
[1645329142569,0.91861249,2720.7,2720.0,1.1528]
[1645329146220,1.06577549,2720.7,2720.0,1.1528]
[1645329146418,0.91861249,2720.7,2720.0,1.1528]
[1645329147419,0.91861249,2720.7,2720.2,0.00673892]
[1645329149622,1.0,2720.8,2720.2,0.00673892]
[1645329149825,2.84007,2720.9,2720.2,0.00673892]
[1645329150077,0.147165,2720.7,2720.2,0.00673892]
[1645329150276,0.147165,2720.7,2720.3,1.56259832]
[1645329150477,0.147165,2720.7,2720.2,0.00673892]
[1645329150679,0.147165,2720.7,2720.3,2.48245209]
[1645329150878,0.147165,2720.7,2720.3,0.91986]
[1645329151878,1.91991,2721.0,2720.3,0.91986]
[1645329152482,1.91991,2721.0,2720.4,0.95609091]
[1645329152679,1.91991,2721.0,2720.3,0.91986]
[1645329153079,1.91991,2721.0,2720.2,0.00673892]
[1645329153281,1.91991,2721.0,2720.3,1.56256882]
[1645329153827,0.9199801,2720.9,2720.3,1.56256882]
[1645329154122,0.9199801,2720.9,2720.2,0.00673892]
[1645329154123,0.92001,2720.7,2720.2,0.00673892]
[1645329156525,1.84024,2720.6,2720.2,0.00673892]
[1645329156924,2.84024,2720.6,2720.2,0.00673892]
[1645329157577,2.84024,2720.6,2720.0,1.10953892]
[1645329157578,3.7603309,2720.6,2720.0,1.10953892]
[1645329157978,0.92007,2720.4,2720.0,1.10953892]
[1645329158581,1.0,2720.5,2720.0,1.10953892]
[1645329158886,0.3,2720.7,2720.1,1.5626724]
[1645329159181,1.3,2720.8,2720.0,1.10953892]
[1645329159381,1.6,2720.8,2720.1,1.56263836]
[1645329159581,1.0,2720.8,2720.1,1.56263836]
[1645329159785,1.0,2721.0,2720.1,1.56263836]
[1645329160184,1.9199,2721.1,2720.1,1.56263836]
[1645329160380,0.9199,2721.1,2720.1,1.56263836]
[1645329161722,0.9199,2721.1,2720.3,0.91982]
[1645329162124,0.9199,2721.1,2720.4,1.56249619]
[1645329162725,0.9199,2721.1,2720.7,0.86914511]
[1645329162925,0.9199,2721.1,2720.3,0.91982]
[1645329163127,0.9199,2721.1,2720.4,1.56245708]
[1645329163324,1.8397914,2721.1,2720.3,0.91982]
[1645329163523,1.8397914,2721.1,2720.4,1.56253469]
[1645329163725,1.8397914,2721.1,2720.0,8.46203892]
[1645329163925,0.91995,2720.8,2720.0,8.46203892]
[1645329164128,0.91995,2720.8,2720.4,0.94313219]
[1645329164725,0.91995,2720.8,2720.0,8.46203892]
[1645329164984,0.91995,2720.8,2720.1,1.56258697]
[1645329165381,1.91995,2720.8,2720.1,1.56258697]
[1645329165582,2.06711,2720.8,2720.1,1.56258697]
[1645329165780,1.91995,2720.8,2720.1,1.56258697]
[1645329166581,1.91995,2720.8,2720.1,2.41706208]
[1645329166785,1.91995,2720.8,2720.2,1.56258697]
[1645329166786,5.61995,2720.8,2720.2,1.56258697]
[1645329167785,5.61995,2720.8,2720.3,1.56255261]
[1645329167983,5.61995,2720.8,2720.4,1.56255261]
[1645329167984,4.61995,2720.8,2720.4,1.56255261]
[1645329168185,4.61995,2720.8,2720.1,0.85447511]
[1645329168384,4.61995,2720.8,2720.2,1.56252923]
[1645329169227,4.767105,2720.8,2720.2,1.56252923]
[1645329169430,8.867105,2720.8,2720.2,1.56252923]
[1645329169625,8.867105,2720.8,2720.0,1.10953892]
[1645329169626,0.531,2720.7,2720.0,1.10953892]
[1645329169925,0.531,2720.7,2719.6,0.00307796]
[1645329169926,1.10385,2720.6,2719.6,0.00307796]
[1645329170121,0.531,2720.5,2719.6,1.56596122]
[1645329170322,0.1837,2720.4,2719.6,1.56596122]
[1645329170521,0.531,2720.3,2719.6,1.56596122]
[1645329170725,0.3,2720.1,2719.6,0.00307796]
[1645329170924,0.92025,2720.0,2719.6,1.56291155]
[1645329171123,0.92025,2720.0,2719.6,1.56598951]
[1645329171722,0.92025,2720.0,2719.6,0.00307796]
[1645329172030,0.92025,2720.0,2719.5,6.90559493]
[1645329172222,0.92025,2720.0,2719.6,0.00307796]
[1645329172884,0.92025,2720.0,2719.6,1.56595507]
[1645329173184,1.067451,2720.0,2719.6,1.56287711]
[1645329173382,1.067451,2720.0,2719.6,1.56595415]
[1645329173581,0.92025,2720.0,2719.6,0.00307704]
[1645329174383,0.92025,2720.0,2719.4,1.1982]
[1645329174784,0.92025,2720.0,2719.6,0.00307704]
[1645329175585,0.92025,2720.0,2719.4,2.12924132]
[1645329175985,0.92025,2720.0,2719.6,0.00307704]
[1645329176825,0.92025,2720.0,2719.4,2.12924132]
[1645329177228,1.06745,2720.0,2719.6,0.00308339]
[1645329177430,1.92025,2720.0,2719.6,0.00308339]
[1645329178023,1.92025,2720.0,2719.4,2.12924132]
[1645329178224,1.92025,2720.0,2719.6,0.00308339]
[1645329178426,0.92025,2720.0,2719.6,0.00308339]
[1645329179225,0.92025,2720.0,2719.4,2.12924132]
[1645329179424,4.62025,2720.0,2719.6,0.00308339]
[1645329179623,4.92025,2720.0,2719.6,0.00308339]
[1645329179829,1.0,2719.9,2719.6,0.00308339]
[1645329180083,1.9202785,2719.9,2719.6,0.00308339]
[1645329180292,5.531,2719.8,2719.6,0.00308339]
[1645329180489,5.531,2719.8,2718.1,0.69949209]
[1645329180490,40.5,2719.6,2718.3,1.01364447]
[1645329180691,40.5,2719.6,2718.6,1.56342756]
[1645329180692,0.7147,2719.5,2718.6,1.56342756]
[1645329180888,0.7147,2719.5,2718.4,10.82]
[1645329181083,2.0147,2719.5,2718.4,10.82]
[1645329181685,1.84136,2719.3,2718.4,3.5]
[1645329181884,1.0149,2719.2,2718.4,3.5]
[1645329182085,1.3149,2719.2,2718.4,3.5]
[1645329182284,2.3149,2719.2,2718.4,3.5]
[1645329182489,2.3149,2719.2,2718.3,1.02178482]
[1645329182684,1.131,2719.2,2718.3,1.02178482]
[1645329182887,1.8412703,2719.0,2718.3,1.02178482]
[1645329183283,3.4412703,2719.0,2718.3,1.02178482]
[1645329184324,3.4412703,2719.0,2718.5,0.00304516]
[1645329185131,3.5885163,2719.0,2718.5,0.00304516]
[1645329185328,3.4412703,2719.0,2718.3,1.02178482]
[1645329185528,3.4412703,2719.0,2718.6,0.00304505]
[1645329185727,2.8412703,2719.0,2718.6,0.00304505]
[1645329186532,3.4412703,2719.0,2718.2,1.2212]
[1645329186729,3.4412703,2719.0,2718.7,0.00304499]
[1645329187777,3.4412703,2719.0,2718.2,1.2212]
[1645329187974,3.4412703,2719.0,2718.7,0.00304493]
[1645329188974,3.5885183,2719.0,2718.2,1.2212]
[1645329189175,3.5885183,2719.0,2718.7,0.00304493]
[1645329189375,3.4412703,2719.0,2718.7,0.00304493]
[1645329190077,3.4412703,2719.0,2718.2,2.27579179]
[1645329190281,3.4412703,2719.0,2718.7,0.00304493]
[1645329190879,7.1412703,2719.0,2718.7,0.00304493]
[1645329191327,7.1412703,2719.0,2718.2,1.2212]
[1645329191522,7.1412703,2719.0,2718.7,0.00304493]
[1645329192524,7.1412703,2719.0,2718.2,1.2212]
[1645329192726,7.1412703,2719.0,2718.7,0.00304493]
[1645329193641,7.1412703,2719.0,2718.2,1.2212]
[1645329194026,7.1412703,2719.0,2718.7,0.00304493]
[1645329194824,7.1412703,2719.0,2718.2,1.2212]
[1645329195275,7.1412703,2719.0,2718.7,0.00304493]
[1645329196073,7.1412703,2719.0,2718.2,1.2212]
[1645329196274,7.2885283,2719.0,2718.7,0.00304493]
[1645329196674,7.1412703,2719.0,2718.7,0.00304493]
[1645329197077,8.9827429,2719.0,2718.7,0.00304493]
[1645329197277,0.92081,2718.6,2717.9,1.1753]
[1645329197676,2.52081,2718.6,2717.9,1.1753]
[1645329197877,1.92081,2718.6,2717.9,1.1753]
[1645329198078,0.36115624,2718.5,2717.9,1.1753]
[1645329198721,0.36115624,2718.5,2718.1,0.00304566]
[1645329199727,0.66115624,2718.5,2717.9,1.1753]
[1645329199926,0.36115624,2718.5,2718.2,0.0030392]
[1645329200323,0.50842924,2718.5,2718.2,0.0030392]
[1645329200523,0.36115624,2718.5,2718.2,0.0030392]
[1645329200928,0.36115624,2718.5,2717.9,4.6753]
[1645329201125,0.36115624,2718.7,2718.2,0.00303915]
[1645329201326,0.56115624,2718.7,2718.2,0.00303915]
[1645329201730,0.92071,2718.6,2718.2,0.00303915]
[1645329202129,0.92071,2718.6,2717.9,1.1753]